[Event "European Women-ch 2023"]
[Site "Petrovac"]
[Date "2023.03.18"]
[Round "1.7"]
[White "Kulon, Klaudia"]
[Black "Silva, Mariana Sofia T."]
[Result "1-0"]
[ECO "B11"]
[WhiteElo "2290"]
[BlackElo "1920"]
[Annotator "TA"]
[PlyCount "129"]
[EventDate "2023.03.15"]
[EventType "swiss"]
[EventCountry "MNE"]
[SourceTitle "playchess.com"]
[Source "ChessBase"]
[SourceQuality "1"]
[TimeControl "40/5400+30:1800+30"]

{[%evp 10,129,14,14,35,9,10,11,34,47,80,78,109,100,122,77,103,74,72,64,57,44,42,47,71,35,41,45,81,89,75,41,46,48,47,30,21,0,0,0,14,-15,16,-12,0,0,0,0,0,0,0,0,0,0,10,7,27,20,47,43,40,8,8,14,14,31,23,23,27,24,30,8,85,109,93,108,179,190,163,163,455,437,375,224,192,162,170,166,343,324,303,313,248,123,230,128,151,8,172,166,1018,902,29977,29978,29978,29979,29982,29983,29983,29984,29984,29985,29985,29986,29986,29987,29987,29988,29988,29989,29989,29990]} 1. e4 {[%emt 0:00:04]} c6 {[%emt 0:00:10]} 2. Nf3 {[%emt 0:00:05]} d5 {[%emt 0:00:09]} 3. Nc3 {[%emt 0:00:04]} Bg4 {[%emt 0:00:20]} 4. h3 {[%emt 0:00:07]} Bxf3 {[%emt 0:00:07]} 5. Qxf3 {[%emt 0:00:04]} e6 {[%emt 0:00:16]} 6. d3 {[%emt 0:00:08]} Bc5 {[%emt 0:05:21] B11: Caro-Kann: Two Knights Variation.} 7. Bd2 {[%emt 0:01:16]} Nd7 {[%emt 0:09:23]} 8. O-O-O {[%emt 0:01:51]} d4 {[%emt 0:07:58] The position is equal.} 9. Ne2 {[%emt 0:01:50]} Ngf6 {[%emt 0:11:18]} 10. g4 {[%emt 0:01:51][%cal Bg2g4,Bg4g5][%mdl 32] [#]} Qb6 $146 {[%emt 0:11:34]} ({Predecessor:} 10... h6 11. h4 h5 12. g5 Ng4 13. Bh3 g6 14. Qg3 a5 15. Bxg4 hxg4 16. Qxg4 Qe7 {1-0 Lillo Castany,V (2315)-Cervello Tost,F (2065) Catalunya-chT 2014 (5.4)}) 11. g5 {[%emt 0:02:34]} Ng8 {[%emt 0:05:26]} 12. h4 {[%emt 0:02:15][%cal Bh3h4,Bh4h5][%mdl 32]} Ne7 {[%emt 0:03:57]} 13. Bh3 {[%emt 0:05:59]} Bd6 {[%emt 0:02:41]} 14. h5 {[%emt 0:05:12]} c5 {[%emt 0:07:29]} 15. Bf4 {[%emt 0:10:52][%cal Og5g6]} Qc7 {[%emt 0:10:13]} 16. Kb1 {[%emt 0:02:47]} Rf8 {[%emt 0:04:04]} 17. Qg3 {[%emt 0:02:40]} Bxf4 {[%emt 0:03:12]} 18. Nxf4 {[%emt 0:00:04]} e5 {[%emt 0:08:34]} 19. Ne2 {[%emt 0:00:57]} O-O-O {[%emt 0:00:25]} 20. c3 {[%emt 0:03:15] White is more active.} Kb8 {[%emt 0:01:13]} 21. cxd4 {[%emt 0:03:00]} cxd4 {[%emt 0:00:05]} 22. Rc1 {[%emt 0:08:16]} Qd6 {[%emt 0:00:13]} 23. Bf5 {[%emt 0:01:25]} Nxf5 {[%emt 0:02:29]} 24. exf5 {[%emt 0:00:02]} Nb6 {[%emt 0:00:33][%cal Bd7b6,Bb6d5,Bd5c3][%mdl 32]} 25. Qf3 {[%emt 0:03:49]} Nd5 {[%emt 0:02:44]} 26. Ng3 {[%emt 0:01:01]} (26. h6 $5 {[%cal Rh6g7]} g6 27. f6 $11) 26... Rc8 {[%emt 0:01:53]} 27. Ne4 {[%emt 0:05:29]} Qb6 {[%emt 0:00:20]} 28. Rc4 {[%emt 0:10:20]} Nc3+ {[%emt 0:01:20]} 29. Nxc3 {[%emt 0:00:08]} dxc3 {[%emt 0:00:07][%csl Gc3][%cal Rb6b2]} 30. b3 {[%emt 0:00:16]} Rfd8 {[%emt 0:01:09]} 31. Rc1 {[%emt 0:03:12]} Rxc4 {[%emt 0:00:37]} 32. dxc4 $11 {[%emt 0:00:01][%mdl 4096] Endgame KQR-KQR} Rd2 {[%emt 0:00:16]} 33. Qxc3 {[%emt 0:01:02]} Qd4 {[%emt 0:00:50]} 34. Qxd4 {[%emt 0:01:53]} exd4 $14 {[%emt 0:00:01] KR-KR} 35. Re1 {[%emt 0:01:57]} Rxf2 {[%emt 0:00:58]} 36. Re8+ {[%emt 0:00:09]} Kc7 {[%emt 0:00:03]} 37. Re7+ {[%emt 0:00:02]} Kc6 {[%emt 0:00:33]} 38. Rxf7 {[%emt 0:00:06]} d3 {[%emt 0:00:33] ( -> ...Rf1+)} 39. Kc1 {[%emt 0:00:09] Strongly threatening g6.} (39. Rxg7 Rf1+ 40. Kb2 d2 41. Re7 d1=Q 42. Re6+ Kd7 43. Kc3 Rf2) 39... Kc5 $1 {[%emt 0:00:36]} 40. Rd7 {[%emt 0:00:00] g6 is the strong threat.} (40. Rxg7 $2 Kb4 41. Kd1 (41. Rxh7 $2 Kc3 42. Re7 Rf1+) 41... Kc3 $19) (40. Rxb7 $2 Kd4 41. Kd1 (41. Rxg7 $2 Kc3 42. Re7 Rf1+) 41... Kc3 $19) 40... Rxf5 {[%emt 0:00:00]} (40... Kb4 $1 $11 {keeps the balance.} 41. Rxd3 (41. Rxb7+ $2 Kc3 42. Re7 Rf1+) 41... Rxf5) 41. Kd2 $16 {[%emt 0:07:54]} (41. Rxd3 $6 Rxg5 42. h6 gxh6 $11) (41. Rxb7 $2 Kd4 42. Kb2 (42. Rxa7 $2 Kc3 43. Re7 Rf1+) 42... Rf2+ 43. Ka3 d2 $19) 41... Rxg5 {[%emt 0:10:14]} 42. Rxb7 {[%emt 0:01:18] aiming for Rb5+.} (42. Rxd3 $6 a6 $11) 42... Kd4 {[%emt 0:07:11]} (42... a6 $16 {is a better defense.}) 43. Rd7+ $18 {[%emt 0:00:42]} (43. Rxa7 $2 Rg2+ 44. Ke1 d2+ 45. Kf1 (45. Kd1 $2 Kc3 $19) 45... d1=Q+ $19) 43... Ke4 {[%emt 0:00:05]} 44. Kc3 {[%emt 0:01:34]} (44. Rxd3 $6 Rxh5 45. Rd7 g5 $11) (44. Rxa7 Rg2+ 45. Kc3 Rc2+ 46. Kb4 d2 47. Re7+ Kf4 48. Rf7+ Ke4 49. Re7+ Kd3 50. Rd7+ Ke2 51. Re7+ Kf3 52. Rf7+ Ke4 53. Re7+ $15) 44... a5 {[%emt 0:04:44]} (44... Rxh5 45. Re7+ (45. Rxd3 g5 $11) (45. Rxg7 d2 $16) 45... Kf5) 45. Rd4+ {[%emt 0:02:37]} ({Not} 45. Rxd3 Rxh5 46. Rd4+ Kf3 $14) 45... Kf3 {[%emt 0:03:29]} 46. Kxd3 {[%emt 0:04:28]} (46. Rxd3+ $142 Ke4 47. Rd4+ Ke3 48. Rd5) 46... Rxh5 {[%emt 0:01:52]} 47. Rd5 {[%emt 0:00:07]} Rh1 {[%emt 0:02:49]} 48. c5 $1 {[%emt 0:00:42] Threatens to win with Kc4.} ({Don't play} 48. Rxa5 $6 h5 $14) 48... h5 $2 {[%emt 0:00:52]} (48... Rc1 49. Kd2 Ke4) 49. c6 {[%emt 0:00:46][%cal Od3c2] And now Kc2! would win.} Rc1 {[%emt 0:01:42]} 50. Rxh5 {[%emt 0:01:59]} ({Inferior is} 50. Rxa5 g6 $11) 50... Rxc6 {[%emt 0:00:35] [#]} 51. Rxa5 {[%emt 0:00:12]} (51. Rf5+ $1 $18 Kg4 52. Rxa5) 51... Kf4 {[%emt 0:00:33]} (51... Rd6+ $16 52. Kc4 Rc6+ 53. Kd4 Rd6+ 54. Ke5 Rd7) 52. Ra7 {[%emt 0:00:42]} (52. b4 $18) 52... g5 $16 {[%emt 0:00:17] [#]} 53. b4 {[%emt 0:00:38]} (53. a4 $1 $16) 53... g4 $2 {[%emt 0:00:36] Loses the game.} (53... Rd6+ $11 54. Ke2 Rb6) 54. Rf7+ $18 {[%emt 0:01:06]} Kg3 $2 {[%emt 0:00:16]} (54... Ke5) 55. b5 {[%emt 0:02:03][%cal Bb4b5,Bb5b6,Bb6b7][%mdl 32]} Rc1 {[%emt 0:00:27]} 56. b6 {[%emt 0:00:29] White mates.} Rb1 {[%emt 0:01:17]} 57. b7 {[%emt 0:00:04]} Kh2 {[%emt 0:00:47]} 58. a4 {[%emt 0:02:36][%cal Ba2a4,Ba4a5,Ba5a6,Ba6a7][%mdl 32]} g3 {[%emt 0:00:08]} 59. Rh7+ {[%emt 0:00:25]} Kg1 {[%emt 0:00:22]} 60. a5 {[%emt 0:00:09]} g2 {[%emt 0:00:25]} 61. a6 {[%emt 0:00:20]} Kf2 {[%emt 0:01:22]} 62. Rf7+ {[%emt 0:00:05]} Kg3 {[%emt 0:01:12]} 63. Rg7+ {[%emt 0:00:04]} Kf2 {[%emt 0:00:05] [#]} 64. Rxg2+ $3 {[%emt 0:00:17][%mdl 576] Promotion} Kxg2 {[%emt 0:00:06]} 65. a7 {[%emt 0:00:02] Weighted Error Value: White=0.15 (very precise) /Black=0.33} 1-0

[Event "European Women-ch 2023"]
[Site "Petrovac"]
[Date "2023.03.18"]
[Round "1.8"]
[White "Lach, Aleksandra"]
[Black "Stefanova, Antoaneta"]
[Result "1/2-1/2"]
[ECO "C27"]
[WhiteElo "2170"]
[BlackElo "2435"]
[Annotator "TA"]
[PlyCount "83"]
[EventDate "2023.03.15"]
[EventType "swiss"]
[EventCountry "MNE"]
[SourceTitle "playchess.com"]
[Source "ChessBase"]
[SourceQuality "1"]
[TimeControl "40/5400+30:1800+30"]

{[%evp 9,83,-31,-34,-22,-4,-16,-5,-16,-20,-29,7,0,53,56,59,55,72,68,81,81,102,35,43,43,42,0,0,21,20,0,0,0,0,0,0,0,0,0,1,15,7,0,0,0,0,0,0,0,0,0,14,12,48,51,59,62,55,47,61,0,5,0,0,0,0,0,0,0,0,0,0,0,0,0,0,0]} 1. e4 {[%emt 0:00:06]} e5 {[%emt 0:00:04]} 2. Bc4 {[%emt 0:00:36]} Nf6 {[%emt 0:01:19]} 3. d3 {[%emt 0:00:25]} Bc5 {[%emt 0:02:14]} 4. Nc3 {[%emt 0:06:23]} c6 {[%emt 0:05:48]} 5. Qf3 {[%emt 0:16:31]} b5 {[%emt 0:17:09]} 6. Bb3 {[%emt 0:01:48] C27: Vienna Game: 2...Nf6 3 Bc4 Nxe4.} a5 {[%emt 0:00:07] White must now prevent ...a4.} 7. a4 {[%emt 0:11:48]} b4 {[%emt 0:01:13]} 8. Nd1 {[%emt 0:11:33]} ({Avoid the trap} 8. Qg3 $2 bxc3 9. Qxe5+ (9. Qxg7 $2 {perishes.} Rf8 $19) 9... Be7 10. bxc3 d5 $19) 8... d5 {[%emt 0:03:21]} 9. Bg5 {[%emt 0:08:29] [#]} Be6 $146 {[%emt 0:15:48]} ({Predecessor:} 9... d4 10. Ne2 Be7 11. h3 Nbd7 12. Ng3 g6 13. Nf1 Nc5 14. Bc4 h6 15. Bc1 b3 16. cxb3 {0-1 Herb,P (2335)-Skembris,S (2475) Naujac op 02nd 1999 (4)}) 10. Bxf6 {[%emt 0:07:20]} gxf6 {[%emt 0:02:51]} (10... Qxf6 $11 11. exd5 cxd5) 11. exd5 {[%emt 0:03:52]} cxd5 {[%emt 0:01:38]} 12. Ne3 {[%emt 0:05:05]} Nc6 {[%emt 0:08:33] [#] Strongly threatening ...Nd4.} 13. Ne2 {[%emt 0:05:18][%cal Rb3d5]} Bxe3 {[%emt 0:14:58]} 14. fxe3 {[%emt 0:00:13]} Rg8 {[%emt 0:03:54]} 15. Ng3 {[%emt 0:03:51]} (15. O-O-O $16) 15... Rg6 {[%emt 0:02:40]} 16. O-O {[%emt 0:09:53]} Rc8 {[%emt 0:00:04]} 17. c3 {[%emt 0:01:32]} bxc3 {[%emt 0:04:34]} 18. bxc3 {[%emt 0:00:06]} Ne7 {[%emt 0:00:32] [#]} 19. c4 $1 {[%emt 0:02:24]} e4 {[%emt 0:04:26][%mdl 64] Deflection} 20. dxe4 {[%emt 0:00:35]} dxc4 {[%emt 0:00:04]} 21. Bc2 {[%emt 0:00:17]} Nc6 {[%emt 0:00:18]} 22. Nh5 {[%emt 0:01:50]} Nb4 $1 {[%emt 0:07:44]} 23. Qf2 {[%emt 0:01:24]} (23. Nxf6+ $2 {too greedy.} Qxf6 24. Qxf6 Rxf6 25. Rxf6 Nxc2 $19) 23... Nxc2 {[%emt 0:01:41]} 24. Qxc2 {[%emt 0:00:01]} c3 {[%emt 0:00:12]} 25. Nf4 {[%emt 0:00:36]} Rg5 {[%emt 0:00:11]} 26. Rab1 {[%emt 0:00:55]} Qd2 {[%emt 0:01:12]} 27. Qxd2 {[%emt 0:00:24]} cxd2 {[%emt 0:00:02]} 28. Nxe6 {[%emt 0:00:25]} fxe6 $11 {[%emt 0:00:02][%mdl 4096] Endgame KRR-KRR} 29. Rbd1 {[%emt 0:00:30][%cal Bb1d1,Bd1d2,Bd2e2][%mdl 32]} Re5 {[%emt 0:01:00]} 30. Rxd2 {[%emt 0:00:37]} Rxe4 {[%emt 0:00:13]} (30... Ke7 $5 {[%cal Re5e4]}) 31. Rxf6 {[%emt 0:00:06]} Rxe3 {[%emt 0:00:17]} 32. Rh6 $1 {[%emt 0:00:54]} Rc7 {[%emt 0:01:12]} 33. Rh5 {[%emt 0:00:37]} Ra7 {[%emt 0:00:48]} 34. Kf2 {[%emt 0:00:18] White is more active.} (34. Rb2 $14 Kf8 35. Rf2+ Ke8 36. Rf4) 34... Re4 {[%emt 0:00:39] The position is equal.} 35. Re2 {[%emt 0:00:35]} Rf7+ {[%emt 0:00:23]} 36. Ke1 {[%emt 0:00:03]} Rxa4 {[%emt 0:00:07]} 37. Rxe6+ {[%emt 0:00:13]} Kf8 {[%emt 0:00:24]} 38. Ree5 {[%emt 0:00:54]} Ra1+ {[%emt 0:00:34]} 39. Ke2 {[%emt 0:00:36]} Ra2+ {[%emt 0:00:24]} 40. Ke3 {[%emt 0:00:00]} Rxg2 {[%emt 0:00:00]} 41. Rxa5 {[%emt 0:01:10]} Rg6 {[%emt 0:04:11]} 42. Raf5 {[%emt 0:04:55] Weighted Error Value: White=0.07 (flawless) /Black=0.07 (flawless)} 1/2-1/2

[Event "European Women-ch 2023"]
[Site "Petrovac"]
[Date "2023.03.18"]
[Round "1.8"]
[White "Hajiyeva, Laman"]
[Black "Guichard, Pauline"]
[Result "1-0"]
[ECO "C58"]
[WhiteElo "2118"]
[BlackElo "2379"]
[Annotator "TA"]
[PlyCount "73"]
[EventDate "2023.03.15"]
[EventType "swiss"]
[EventCountry "MNE"]
[SourceTitle "playchess.com"]
[Source "ChessBase"]
[SourceQuality "1"]
[TimeControl "40/5400+30:1800+30"]

{[%evp 14,73,29,25,33,50,34,38,41,39,51,39,53,21,22,22,25,27,28,28,28,15,175,181,219,204,197,202,307,317,309,316,418,397,411,401,615,602,743,744,836,786,2873,2534,29984,29983,29983,29984,29984,29985,29987,29986,29986,29985,29987,29988,29988,29989,29989,29990,29990,29991]} 1. e4 {[%emt 0:00:05]} e5 {[%emt 0:00:13]} 2. Nf3 {[%emt 0:00:10]} Nc6 {[%emt 0:00:08]} 3. Bc4 {[%emt 0:00:20]} Nf6 {[%emt 0:00:13]} 4. Ng5 {[%emt 0:00:16]} d5 {[%emt 0:00:10]} 5. exd5 {[%emt 0:00:05]} Na5 {[%emt 0:00:04]} 6. Bb5+ {[%emt 0:00:09]} c6 {[%emt 0:00:08]} 7. dxc6 {[%emt 0:00:11]} bxc6 {[%emt 0:00:08]} 8. Bd3 {[%emt 0:00:14]} Ng4 {[%emt 0:03:28] C58: Two Knights: 4 Ng5 d5 5 exd5 Na5 sidelines.} 9. Ne4 {[%emt 0:03:09]} f5 {[%emt 0:00:56]} 10. Be2 $1 {[%emt 0:02:50]} h5 {[%emt 0:01:33] White is slightly better.} 11. h3 {[%emt 0:03:10][%cal Bh2h3,Bh3g4][%mdl 32]} fxe4 {[%emt 0:07:55]} 12. hxg4 {[%emt 0:00:31]} Bc5 {[%emt 0:00:28]} 13. Nc3 {[%emt 0:02:40]} (13. Rxh5 $2 {perishes.} Rxh5 14. Bf1 Rh1 $19) (13. gxh5 $2 {too greedy.} O-O 14. d4 exd3 15. Qxd3 Bxf2+ 16. Kd1 e4 17. Qxd8 Rxd8+ 18. Nd2 e3 $19) (13. b4 $5 {[%cal Rb4c5]} Qd4 14. bxc5 $14) 13... Qd4 {[%emt 0:04:26][%csl Gc5][%cal Rd4f2] [#]} 14. O-O {[%emt 0:01:31]} O-O {[%emt 0:00:46][%cal Rf8f2]} 15. Qe1 {[%emt 0:01:08]} hxg4 {[%emt 0:01:28] ...g3 would be deadly.} (15... Bxg4 $2 16. Bxg4 hxg4 17. Nxe4 $18) 16. d3 {[%emt 0:04:59]} exd3 {[%emt 0:20:38]} 17. Bxd3 {[%emt 0:05:32] [#] Be3 is the strong threat.} Bb6 $146 {[%emt 0:21:10] Loses the game.} (17... Rxf2 $1 $11 {and Black stays safe.} 18. Qxf2 Qxf2+ 19. Rxf2 g3 {[%mdl 64] Pin}) ({Predecessor:} 17... Rxf2 18. Qxf2 Qxf2+ 19. Rxf2 g3 20. Ne4 Bxf2+ 21. Nxf2 gxf2+ 22. Kxf2 Be6 23. b3 Rf8+ {½-½ Blomqvist,E (2535)-Hector,J (2485) SWE-ch Helsingborg 2021 (2)}) 18. Be3 $36 {[%emt 0:08:21][%mdl 2048] Black is under strong pressure.} Qd6 {[%emt 0:00:50]} 19. Ne4 {[%emt 0:03:36][%cal Bc3e4,Be4g3,Bg3h5,Bh5f6][%mdl 32]} Qe7 {[%emt 0:01:28]} 20. Ng3 {[%emt 0:08:30] Against Bf5. aiming for Bd2.} Bd7 {[%emt 0:10:04]} (20... Qf6 {is a better defense.} 21. Qc3 e4) 21. Bxb6 {[%emt 0:05:50]} axb6 {[%emt 0:00:05]} 22. Qe4 {[%emt 0:03:09] Strongly threatening Qh7+.} Qh4 {[%emt 0:00:41] Prevents Qh7+} 23. b4 {[%emt 0:08:40]} ({Weaker is} 23. Qxe5 Rae8 24. Qc3 c5 $16) 23... Nb7 {[%emt 0:00:11]} 24. Qxe5 {[%emt 0:01:07] And now Nh5 would win.} Rf6 {[%emt 0:08:52]} (24... Qf6 $142 25. Qc7 Bc8 26. Qxb6 Nd8) 25. Nh5 {[%emt 0:07:06]} Re8 {[%emt 0:03:52]} 26. Nxf6+ {[%emt 0:01:28]} gxf6 {[%emt 0:00:06]} 27. Qc7 {[%emt 0:04:07]} Re5 {[%emt 0:02:00]} 28. Qxd7 {[%emt 0:02:08] White wants to mate with Bc4+.} Rh5 {[%emt 0:00:11]} 29. Qc8+ {[%emt 0:01:23] White mates.} (29. Qxb7 $2 Qh2#) 29... Kg7 {[%emt 0:01:24]} 30. Qxb7+ {[%emt 0:00:05]} Kf8 {[%emt 0:01:19]} 31. Qc8+ {[%emt 0:00:04]} (31. Qxb6 $2 Qh2#) 31... Kf7 {[%emt 0:00:49]} 32. Qd7+ {[%emt 0:01:41]} (32. Qxc6 $2 Qh2#) 32... Kf8 {[%emt 0:00:10]} 33. Qd8+ {[%emt 0:01:33]} (33. Qxc6 $2 Qh2#) 33... Kf7 {[%emt 0:00:22]} 34. Bc4+ {[%emt 0:00:59]} (34. Qxb6 $2 Qh2#) 34... Kg6 {[%emt 0:01:38]} 35. Qg8+ {[%emt 0:00:31]} (35. Qxb6 $2 Qh2#) 35... Kh6 {[%emt 0:00:22]} 36. Qf8+ {[%emt 0:00:12]} Kg6 {[%emt 0:00:15]} 37. Bf7+ {[%emt 0:00:35] Weighted Error Value: White=0.01 (flawless) /Black=0.41} 1-0

[Event "European Women-ch 2023"]
[Site "Petrovac"]
[Date "2023.03.18"]
[Round "1.8"]
[White "Petrovska, Katerina"]
[Black "Hrebenshchykova, Yelyzaveta"]
[Result "0-1"]
[ECO "B30"]
[WhiteElo "1907"]
[BlackElo "2289"]
[Annotator "TA"]
[PlyCount "58"]
[EventDate "2023.03.15"]
[EventType "swiss"]
[EventCountry "MNE"]
[SourceTitle "playchess.com"]
[Source "ChessBase"]
[SourceQuality "1"]
[TimeControl "40/5400+30:1800+30"]

{[%evp 9,58,15,27,-25,-3,-1,6,-8,-13,-3,0,0,0,0,0,0,27,0,0,0,0,0,-7,-10,0,-18,-21,-102,-69,-60,-66,-204,-193,-268,-266,-335,-347,-465,-456,-519,-494,-795,-793,-877,-877,-864,-850,-859,-846,-2222,-2207]} 1. e4 {[%emt 0:00:06]} c5 {[%emt 0:00:23]} 2. Nc3 {[%emt 0:00:35]} Nc6 {[%emt 0:00:48]} 3. Bb5 {[%emt 0:00:22]} Nd4 {[%emt 0:00:27]} 4. Nf3 {[%emt 0:00:25]} e6 {[%emt 0:01:16]} 5. Bd3 {[%emt 0:03:55]} Ne7 {[%emt 0:09:29]} 6. Nb5 {[%emt 0:11:55] [#] B30: Sicilian: 2...Nc6 3 Bb5, lines without ...g6.} ({Better is} 6. Nxd4 cxd4 7. Nb5) 6... Nxb5 $146 {[%emt 0:12:59]} ({Predecessor:} 6... Nec6 7. Nbxd4 cxd4 8. c3 e5 9. cxd4 exd4 10. O-O g6 11. e5 Bg7 12. b3 Qb6 13. a4 {1-0 Gombac,J (2293)-Filip,M (2078) Ljubljana-chT 2009 (8.2)}) 7. Bxb5 {[%emt 0:00:11]} Qa5 {[%emt 0:09:36]} 8. Be2 {[%emt 0:07:29] The position is equal.} d5 {[%emt 0:01:26]} 9. exd5 {[%emt 0:01:15]} Nxd5 {[%emt 0:00:48]} 10. O-O {[%emt 0:01:50]} Be7 {[%emt 0:04:00]} 11. d4 {[%emt 0:08:00]} O-O {[%emt 0:01:56]} 12. c4 {[%emt 0:18:15]} Nf6 {[%emt 0:03:07]} 13. dxc5 {[%emt 0:03:15]} Rd8 {[%emt 0:07:22]} 14. Qc2 {[%emt 0:02:08]} Qxc5 {[%emt 0:01:46]} 15. Be3 {[%emt 0:04:14]} Qc7 {[%emt 0:02:02]} 16. Rad1 {[%emt 0:03:40]} Bd7 {[%emt 0:10:08]} 17. Rd4 {[%emt 0:06:51]} e5 {[%emt 0:04:29][%cal Be6e5,Be5e4][%mdl 32]} 18. Rh4 {[%emt 0:05:44]} (18. Rdd1 $11) 18... e4 {[%emt 0:05:46]} 19. Nd4 {[%emt 0:03:39]} Qe5 {[%emt 0:01:51]} 20. Qc3 {[%emt 0:01:32] [#] This costs White the game.} (20. Qd2 $15) 20... Nd5 $1 $19 {[%emt 0:02:40][%mdl 64] Discovered Attack} 21. Rh5 {[%emt 0:00:15]} (21. cxd5 {was worth a try.} Bxh4 22. Qb3) 21... Qxh5 {[%emt 0:00:22]} ({Inferior is} 21... Nxc3 22. Rxe5 Bf6 23. Ra5 $17) 22. cxd5 {[%emt 0:01:44]} Qxd5 {[%emt 0:01:34][%cal Oa8c8]} 23. f3 {[%emt 0:00:58]} Rac8 {[%emt 0:02:15] Prevents Bc4. Black is clearly winning.} (23... Qxa2 $2 {is the wrong capture.} 24. Bc4 Qa4 25. fxe4 $19) 24. Qe1 {[%emt 0:02:09]} Bc5 {[%emt 0:05:03]} 25. fxe4 {[%emt 0:02:13]} (25. Qf2 $142) 25... Qxe4 {[%emt 0:01:22]} 26. Qf2 {[%emt 0:04:42]} Be6 {[%emt 0:01:20]} 27. Rd1 {[%emt 0:03:07]} Bxd4 {[%emt 0:02:16]} 28. Bxd4 {[%emt 0:01:15]} Rc2 {[%emt 0:00:29]} 29. Be3 {[%emt 0:02:34]} Rxd1+ {[%emt 0:00:14] Weighted Error Value: White=0.80/Black=0.03 (flawless)} 0-1

[Event "European Women-ch 2023"]
[Site "Petrovac"]
[Date "2023.03.18"]
[Round "1.9"]
[White "Arabidze, Meri"]
[Black "Shpanko, Nadiia"]
[Result "1/2-1/2"]
[ECO "D37"]
[WhiteElo "2433"]
[BlackElo "2164"]
[Annotator "TA"]
[PlyCount "92"]
[EventDate "2023.03.15"]
[EventType "swiss"]
[EventCountry "MNE"]
[SourceTitle "playchess.com"]
[Source "ChessBase"]
[SourceQuality "1"]
[TimeControl "40/5400+30:1800+30"]

{[%evp 9,92,25,32,23,27,0,0,2,21,12,17,0,11,0,5,0,0,0,0,0,0,0,8,10,12,3,10,0,0,0,25,11,31,0,4,-16,-16,-16,0,0,10,0,14,0,0,0,0,0,0,-26,0,0,0,0,0,0,3,0,0,0,3,-14,-19,-19,-15,-22,-6,-10,-6,-14,-14,-14,0,0,0,0,0,0,0,0,0,0,0,0,0]} 1. d4 {[%emt 0:00:03]} d5 {[%emt 0:00:08]} 2. c4 {[%emt 0:00:05]} e6 {[%emt 0:00:11]} 3. Nc3 {[%emt 0:00:05]} Nf6 {[%emt 0:00:20]} 4. Nf3 {[%emt 0:00:19]} a6 {[%emt 0:00:55]} 5. cxd5 {[%emt 0:00:43]} exd5 {[%emt 0:00:08]} 6. Bg5 {[%emt 0:00:22] D37: Queen's Gambit Declined: 5 Bf4.} Be6 {[%emt 0:01:55]} 7. Bxf6 {[%emt 0:00:54]} Qxf6 {[%emt 0:00:09]} 8. Qb3 {[%emt 0:00:05][%csl LRb7,LRd5]} Ra7 {[%emt 0:05:43]} 9. g3 {[%emt 0:00:07]} Qd8 {[%emt 0:04:11]} 10. Bg2 {[%emt 0:00:20]} c6 {[%emt 0:01:07]} 11. O-O {[%emt 0:00:40][%cal Of3g5]} Nd7 {[%emt 0:01:24]} 12. Rad1 {[%emt 0:03:44]} Be7 {[%emt 0:06:31]} 13. Rfe1 {[%emt 0:04:55]} O-O {[%emt 0:03:24] [#]} 14. a3 $146 {[%emt 0:00:23]} ({Predecessor:} 14. Qc2 Ra8 15. Ne5 Nxe5 16. dxe5 Qb6 17. Na4 Qa5 18. e4 dxe4 19. Bxe4 g6 20. a3 {0-1 Derige Kane,Y (2157)-Costachi,M (2463) Titled Tuesday intern op 08th Mar Early blitz 2022 (7)}) 14... a5 {[%emt 0:08:20]} 15. Qc2 {[%emt 0:01:41]} b5 {[%emt 0:09:30]} 16. e4 {[%emt 0:10:27]} b4 {[%emt 0:04:05]} 17. axb4 {[%emt 0:01:56]} axb4 {[%emt 0:00:24]} 18. exd5 {[%emt 0:01:49]} cxd5 {[%emt 0:02:35] [#] And now ...Qc7 would win.} 19. Ne2 {[%emt 0:00:19][%cal Bc3e2,Be2c1,Bc1d3,Bd3f4,Bf4e6][%mdl 32]} Rc7 {[%emt 0:02:00]} 20. Qb3 {[%emt 0:04:34]} Bd6 {[%emt 0:03:23]} 21. Nc1 {[%emt 0:05:06]} Rc4 {[%emt 0:04:33]} 22. Ne5 {[%emt 0:16:13]} Bxe5 {[%emt 0:05:32]} 23. dxe5 {[%emt 0:00:14]} d4 {[%emt 0:09:05][%cal Oc4c1] [#] Strongly threatening ...Rxc1!} (23... Nc5 $5 {[%cal Rc5b3]} 24. Qf3 Qd7 $15) 24. Qf3 {[%emt 0:10:39]} Qc7 {[%emt 0:07:45]} 25. Nd3 {[%emt 0:03:44]} Rd8 {[%emt 0:05:50]} 26. Nf4 {[%emt 0:05:29]} Nc5 {[%emt 0:02:24]} ({Resist} 26... Nxe5 27. Qe4 Rc5 28. Rxd4 $16) 27. Nxe6 {[%emt 0:03:35]} Nxe6 {[%emt 0:00:06]} 28. Bf1 {[%emt 0:06:37]} Rc5 {[%emt 0:01:54]} 29. Qf5 {[%emt 0:03:23]} g6 {[%emt 0:01:14]} (29... Rc2 $5 {[%cal Rc2b2]}) 30. Qf6 {[%emt 0:01:18] The position is equal.} Rc2 {[%emt 0:01:47]} 31. b3 {[%emt 0:01:12]} Rc3 {[%emt 0:05:03]} 32. Bh3 {[%emt 0:02:56]} Rc6 {[%emt 0:02:19]} 33. Qh4 {[%emt 0:04:14]} d3 {[%emt 0:01:18] Threatens to win with ...d2.} 34. Bxe6 {[%emt 0:06:50]} Rxe6 {[%emt 0:00:48]} 35. Qxb4 {[%emt 0:00:09]} Rxe5 {[%emt 0:00:12]} 36. Rxe5 {[%emt 0:01:41]} Qxe5 $11 {[%emt 0:00:05][%mdl 4096] Endgame KQR-KQR} 37. Qd2 {[%emt 0:00:17]} Qd5 {[%emt 0:00:30]} 38. b4 {[%emt 0:00:45]} (38. Qc3 {looks sharper.} d2 39. f3 h5 40. Kg2) 38... Qb3 {[%emt 0:01:22]} 39. Kg2 {[%emt 0:01:17]} Kg7 {[%emt 0:00:21]} 40. h4 {[%emt 0:00:00]} Rd4 {[%emt 0:00:00]} 41. Qe3 {[%emt 0:05:05]} Qd5+ {[%emt 0:01:49]} 42. Qf3 {[%emt 0:01:03]} Qxf3+ {[%emt 0:02:06]} 43. Kxf3 {[%emt 0:00:03]} Rxb4 {[%emt 0:00:14]} 44. Rxd3 {[%emt 0:00:05]} h5 {[%emt 0:00:08]} 45. Kg2 {[%emt 0:00:08]} Re4 {[%emt 0:00:09]} 46. Kf3 {[%emt 0:00:06]} Rb4 {[%emt 0:00:04] An even fight not without its subleties.   Weighted Error Value: White=0.05 (flawless) /Black=0.05 (flawless)} 1/2-1/2